[Event "Chinese League Division-A 2024"]
[Site "Fuling Chongqing"]
[Date "2024.06.29"]
[Round "4.6"]
[White "Chen, Qi b"]
[Black "Zeng, Chongsheng"]
[Result "1/2-1/2"]
[ECO "B33"]
[WhiteElo "2481"]
[BlackElo "2578"]
[Annotator "TA"]
[PlyCount "67"]
[EventDate "2024.06.28"]
[EventType "team-tourn"]
[EventCountry "CHN"]
[SourceTitle "playchess.com"]
[Source "ChessBase"]
[SourceQuality "1"]
[TimeControl "40/5400+30:1800+30"]

{[%evp 20,67,32,15,33,37,75,71,60,63,43,54,68,56,70,68,100,95,59,17,16,16,40,0,3,8,25,20,8,8,5,2,32,10,20,0,0,0,0,0,0,0,0,0,0,0,0,0,0,0]} 1. e4 {[%emt 0:00:03]} c5 {[%emt 0:00:17]} 2. Nf3 {[%emt 0:00:07][%cal Bg1f3,Bf3d4,Bd4b5][%mdl 32]} Nc6 {[%emt 0:00:35]} 3. d4 {[%emt 0:00:22]} cxd4 {[%emt 0:00:06]} 4. Nxd4 {[%emt 0:00:03]} Nf6 {[%emt 0:00:10]} 5. Nc3 {[%emt 0:00:05]} e5 {[%emt 0:00:12]} 6. Ndb5 {[%emt 0:00:19]} d6 {[%emt 0:00:09]} 7. Bg5 {[%emt 0:00:34]} a6 {[%emt 0:00:13]} 8. Na3 {[%emt 0:00:04]} b5 {[%emt 0:00:10]} 9. Nd5 {[%emt 0:00:18]} Be7 {[%emt 0:00:09]} 10. Bxf6 {[%emt 0:00:05]} Bxf6 {[%emt 0:00:05]} 11. c4 {[%emt 0:01:46]} Nd4 {[%emt 0:03:39]} 12. cxb5 {[%emt 0:04:13]} Bb7 {[%emt 0:03:45]} 13. Nc3 {[%emt 0:05:05]} O-O {[%emt 0:06:55][%cal Bh8f8,Bf8c8,Bc8c1,Bc1f1][%mdl 32] White is better.} 14. bxa6 {[%emt 0:02:29]} Rxa6 {[%emt 0:02:08]} 15. Bxa6 {[%emt 0:07:30]} Bxa6 {[%emt 0:01:04] [#]} 16. h4 $1 {[%emt 0:00:49]} Qa8 {[%emt 0:03:34]} 17. Qa4 {[%emt 0:05:48]} Rc8 {[%emt 0:03:10][%cal Oc8c3] Hoping for ...Rxc3!} 18. Nd5 {[%emt 0:01:34]} Qb7 {[%emt 0:00:59]} 19. Rd1 {[%emt 0:04:49] Threatens to win with Rh3.} h6 {[%emt 0:08:00]} 20. b4 {[%emt 0:02:58][%cal Ob4b5] [#] Strongly threatening b5!} Bf1 {[%emt 0:05:39]} 21. Rxd4 {[%emt 0:11:28]} (21. Rxf1 $2 {loses.} Ra8 $19) (21. Kxf1 $5 Ra8 $8 22. Qxa8+ (22. Nxf6+ gxf6 $11) 22... Qxa8 23. Nxf6+ (23. Rh3 Bxh4 24. b5 Qa4 $17) 23... gxf6 24. Rh3 $11) 21... exd4 {[%emt 0:00:55]} 22. Rxf1 {[%emt 0:00:15]} Rc1+ {[%emt 0:00:09]} (22... Bxh4 23. Nc2 f5 24. Nxd4 fxe4 25. Qb3 $18) 23. Ke2 {[%emt 0:00:16]} d3+ $1 {[%emt 0:00:06]} 24. Kxd3 {[%emt 0:00:09] Qe8+ would kill now.} Rxf1 {[%emt 0:00:05]} 25. f3 {[%emt 0:00:38] Dancing on a razor blade.} Bxh4 {[%emt 0:00:57]} 26. Nc4 {[%emt 0:01:10] A dynamic duo of knights.} f5 {[%emt 0:00:57] The position is equal.} 27. Qe8+ {[%emt 0:01:39]} Kh7 {[%emt 0:00:02]} 28. Qe6 {[%emt 0:00:50]} Qa8 {[%emt 0:03:06]} 29. a4 {[%emt 0:03:24]} Qxa4 {[%emt 0:00:52]} 30. Qxf5+ {[%emt 0:00:09]} Kg8 {[%emt 0:00:14] White must now prevent ...Rd1+.} 31. Qc8+ {[%emt 0:00:08]} Kh7 {[%emt 0:00:04]} 32. Qf5+ {[%emt 0:00:03]} Kg8 {[%emt 0:00:07] ...Rd1+ is the strong threat.} 33. Qc8+ {[%emt 0:00:03]} Kh7 {[%emt 0:00:04]} 34. Qf5+ {[%emt 0:00:39] Weighted Error Value: White=0.08 (flawless) /Black=0.09 (flawless) .  Inaccurate:     	White=2     	Black=3      OK:         	White=12    	Black=6      Best:        	White=1     	Black=5      Strong:       	---       	Black=1      Brilliant:      	White=1     	---} 1/2-1/2

[Event "Chinese League Division-A 2024"]
[Site "Fuling Chongqing"]
[Date "2024.06.29"]
[Round "4.7"]
[White "Liu, Yan"]
[Black "Xu, Jun"]
[Result "1/2-1/2"]
[ECO "A31"]
[WhiteElo "2573"]
[BlackElo "2471"]
[Annotator "TA"]
[PlyCount "219"]
[EventDate "2024.06.28"]
[EventType "team-tourn"]
[EventCountry "CHN"]
[SourceTitle "playchess.com"]
[Source "ChessBase"]
[SourceQuality "1"]
[TimeControl "40/5400+30:1800+30"]

{[%evp 21,219,35,45,12,2,1,8,15,12,19,0,0,25,27,39,25,45,27,34,14,25,33,25,23,33,23,20,9,15,16,18,24,21,12,45,5,15,16,16,18,74,67,52,15,15,15,15,15,15,15,15,15,15,15,15,15,15,15,15,15,15,15,15,15,15,15,15,15,15,15,15,15,15,15,15,15,15,15,15,15,15,15,15,15,15,15,15,15,15,15,15,15,15,15,15,15,15,15,15,15,15,15,15,15,15,15,15,15,15,15,15,15,15,15,15,15,15,15,15,15,15,0,14,14,14,0,0,0,0,0,0,0,0,0,0,0,0,0,0,0,0,0,0,0,0,0,0,0,0,0,8,8,240,240,225,225,225,225,225,218,196,8,8,8,8,8,8,8,8,8,8,8,8,8,8,0,249,249,249,249,248,8,248,241,224,0,0,0,8,8,8,8,109,17,23,76,221,8,8,8]} 1. Nf3 {[%emt 0:00:25]} c5 {[%emt 0:01:56]} 2. c4 {[%emt 0:00:21]} Nf6 {[%emt 0:00:10]} 3. Nc3 {[%emt 0:00:17]} Nc6 {[%emt 0:00:51]} 4. g3 {[%emt 0:01:34]} g6 {[%emt 0:02:18]} 5. Bg2 {[%emt 0:01:58]} d6 {[%emt 0:02:06]} 6. d4 {[%emt 0:01:29]} cxd4 {[%emt 0:00:02]} 7. Nxd4 {[%emt 0:00:11][%cal Bf3d4,Bd4e2,Be2f4][%mdl 32]} Bd7 {[%emt 0:00:04]} 8. O-O {[%emt 0:03:24]} Bg7 {[%emt 0:00:13]} 9. e3 {[%emt 0:01:58]} O-O {[%emt 0:00:49]} 10. b3 {[%emt 0:00:20]} Qc8 {[%emt 0:04:31]} 11. Bb2 {[%emt 0:06:45]} Bh3 {[%emt 0:01:11]} 12. Nde2 {[%emt 0:06:37]} Bxg2 {[%emt 0:02:03]} 13. Kxg2 {[%emt 0:00:06]} b6 {[%emt 0:01:42]} 14. f3 {[%emt 0:02:49]} Qb7 {[%emt 0:00:25]} 15. Nf4 {[%emt 0:05:02]} a6 {[%emt 0:02:02]} 16. Qe2 {[%emt 0:00:43]} Rab8 {[%emt 0:04:58]} 17. Ncd5 {[%emt 0:15:53]} Nxd5 {[%emt 0:01:30]} 18. cxd5 {[%emt 0:00:08]} Ne5 {[%emt 0:00:45]} 19. e4 {[%emt 0:00:22]} Rbc8 {[%emt 0:01:24]} 20. Rac1 {[%emt 0:00:29]} Rxc1 {[%emt 0:03:39]} 21. Rxc1 {[%emt 0:00:15]} Rc8 {[%emt 0:00:06] Dodges Qc2} 22. Rc2 {[%emt 0:13:54]} a5 {[%emt 0:08:33]} 23. Qd1 {[%emt 0:06:35]} Qa6 {[%emt 0:03:42]} 24. Bxe5 {[%emt 0:04:42]} Rxc2+ {[%emt 0:04:21]} 25. Qxc2 {[%emt 0:00:13]} Bxe5 $11 {[%emt 0:00:02][%mdl 4096] Endgame. KQB-KQN} 26. Nd3 {[%emt 0:00:27]} Bd4 {[%emt 0:00:54]} 27. a4 {[%emt 0:01:12]} Bc5 {[%emt 0:02:01]} 28. Nb2 {[%emt 0:04:07]} Bd4 {[%emt 0:05:04]} 29. Qc4 {[%emt 0:10:24]} Qxc4 {[%emt 0:02:04]} 30. Nxc4 {[%emt 0:00:02] KB-KN} f5 {[%emt 0:01:08]} (30... g5 $11) 31. exf5 $16 {[%emt 0:09:28]} gxf5 {[%emt 0:00:16]} 32. Na3 {[%emt 0:00:05]} Kf7 {[%emt 0:00:49]} 33. Nb5 {[%emt 0:00:09]} Bc5 {[%emt 0:01:25]} 34. Nc7 {[%emt 0:02:00]} Kf6 {[%emt 0:00:25]} 35. f4 {[%emt 0:00:09]} h5 {[%emt 0:00:36]} 36. Ne6 {[%emt 0:00:45]} Be3 {[%emt 0:02:02]} 37. Kf3 {[%emt 0:00:18]} Bc5 {[%emt 0:00:54]} 38. Ke2 {[%emt 0:01:31]} Bg1 {[%emt 0:00:11]} 39. h3 {[%emt 0:00:41]} Kf7 {[%emt 0:01:55]} 40. Kf3 {[%emt 0:00:00]} Kf6 {[%emt 0:00:00]} 41. g4 {[%emt 0:03:48]} fxg4+ {[%emt 0:03:32]} 42. hxg4 {[%emt 0:00:05]} hxg4+ {[%emt 0:00:07]} 43. Kxg4 {[%emt 0:00:05]} Kg6 {[%emt 0:05:42]} 44. Ng5 {[%emt 0:00:37]} Bd4 {[%emt 0:03:10]} 45. Ne4 {[%emt 0:00:36]} Bg1 {[%emt 0:02:30]} 46. f5+ {[%emt 0:00:30]} Kf7 {[%emt 0:00:13]} 47. Kf3 {[%emt 0:04:24] Black should prevent Ke2.} Ke8 {[%emt 0:02:24]} 48. Ke2 {[%emt 0:01:15] White wants to play Kd3.} Kd7 {[%emt 0:03:45]} 49. Kd3 {[%emt 0:00:06] Threatening Kc4.} Kc7 {[%emt 0:01:40]} 50. Kc4 {[%emt 0:06:46]} Bh2 $1 {[%emt 0:01:32]} 51. Ng5 {[%emt 0:10:17]} Be5 {[%emt 0:07:52]} 52. Ne6+ {[%emt 0:02:33]} Kb7 $1 {[%emt 0:02:23]} 53. Kb5 {[%emt 0:03:26]} Bf6 $1 {[%emt 0:02:49]} 54. Nf4 {[%emt 0:01:48]} Be5 {[%emt 0:02:01]} 55. Ne2 {[%emt 0:00:06]} Bf6 {[%emt 0:01:05]} 56. Ng3 {[%emt 0:00:19]} Bg7 {[%emt 0:01:00]} 57. Ne4 {[%emt 0:00:42]} Be5 {[%emt 0:00:09]} 58. Nd2 {[%emt 0:00:42]} Bd4 {[%emt 0:00:36]} 59. Kc4 {[%emt 0:02:23]} Bf6 {[%emt 0:02:28]} 60. Nb1 {[%emt 0:00:48]} Bb2 {[%emt 0:02:40]} 61. Kd3 {[%emt 0:00:07]} Kc7 {[%emt 0:03:21]} 62. Nd2 {[%emt 0:00:10]} Bf6 {[%emt 0:01:45]} 63. Nc4 {[%emt 0:00:20]} Bg7 {[%emt 0:01:14]} 64. Ke4 {[%emt 0:00:07]} Bf6 {[%emt 0:02:23]} 65. Kf3 {[%emt 0:00:22]} Bd4 {[%emt 0:00:45]} 66. Kg4 {[%emt 0:00:09]} Kd7 {[%emt 0:01:02]} 67. Kh5 {[%emt 0:00:07]} Ke8 {[%emt 0:02:26]} 68. Kg6 {[%emt 0:00:07]} Kf8 $1 {[%emt 0:02:03]} 69. Nd2 {[%emt 0:00:12]} Ke8 {[%emt 0:01:15]} 70. Ne4 {[%emt 0:00:40]} Be5 {[%emt 0:00:28]} 71. Nd2 {[%emt 0:03:31]} Bc3 {[%emt 0:01:32]} 72. Nc4 {[%emt 0:00:47]} Bd4 {[%emt 0:00:18] [#]} 73. f6 $1 {[%emt 0:00:27]} Bxf6 {[%emt 0:04:12]} 74. Nxb6 {[%emt 0:00:21]} Bd4 {[%emt 0:03:15]} 75. Nc4 {[%emt 0:00:07]} Bc3 {[%emt 0:00:06]} 76. Ne3 {[%emt 0:00:22]} Bd4 {[%emt 0:00:42]} 77. Nc2 {[%emt 0:01:20]} Bc5 {[%emt 0:01:00]} 78. Kf5 {[%emt 0:00:18]} Kd7 {[%emt 0:00:21]} 79. Ne1 {[%emt 0:00:05]} Bd4 {[%emt 0:01:26]} 80. Nf3 {[%emt 0:00:41]} Bf6 {[%emt 0:01:39]} 81. Kg6 {[%emt 0:00:24]} Ke8 {[%emt 0:00:58]} 82. Nd2 {[%emt 0:00:07]} Bd4 {[%emt 0:00:33]} 83. Nc4 {[%emt 0:00:47]} Bc3 {[%emt 0:00:13]} 84. Na3 {[%emt 0:00:29]} Bb4 {[%emt 0:02:50]} 85. Nb5 {[%emt 0:00:08]} Kf8 {[%emt 0:03:11]} 86. Nc7 {[%emt 0:00:59]} Kg8 $2 {[%emt 0:00:43]} (86... Be1 $1 $11) 87. Ne6 $18 {[%emt 0:00:11]} Bd2 {[%emt 0:01:21]} 88. Nd8 {[%emt 0:01:14]} Kf8 {[%emt 0:00:20]} 89. Kf5 $1 {[%emt 0:00:10] Threatens to win with Ke6.} Ke8 {[%emt 0:00:24]} 90. Ne6 $1 {[%emt 0:00:05]} Kf7 {[%emt 0:00:38]} 91. Nd4 $2 {[%emt 0:00:34]} (91. Ke4 $1 $18) 91... Bc3 $11 {[%emt 0:01:13]} 92. Nf3 {[%emt 0:00:34]} Bf6 {[%emt 0:00:09]} 93. Nd2 {[%emt 0:00:06]} Bd4 {[%emt 0:00:26]} 94. Nc4 {[%emt 0:00:50]} Bc3 {[%emt 0:01:02]} 95. Nb6 {[%emt 0:00:05]} Bd4 {[%emt 0:00:20]} 96. Na8 {[%emt 0:00:10]} (96. Nc4 $5 Bc3 $8 97. Ne3 $11) 96... Bc3 {[%emt 0:00:41]} 97. Nc7 {[%emt 0:00:08] Hoping for Ne6.} Be1 {[%emt 0:00:17]} 98. Ne6 $2 {[%emt 0:00:39]} (98. Ke4 $11) 98... Bd2 $1 $18 {[%emt 0:00:07]} 99. Ke4 $1 {[%emt 0:01:04]} Kf6 {[%emt 0:00:08]} 100. Kd3 {[%emt 0:00:32]} Be1 {[%emt 0:00:20]} 101. Nd4 $2 {[%emt 0:00:14]} (101. Kc4 $18) 101... Bf2 $2 {[%emt 0:01:43]} (101... e5 $1 $11 {and Black has nothing to worry.} 102. Nc2 (102. dxe6 d5 $11) 102... Bf2) 102. Nc6 {[%emt 0:00:34]} Be1 {[%emt 0:00:10]} 103. Nd4 $2 {[%emt 0:01:32]} (103. Kc4 $18) 103... Bf2 $11 {[%emt 0:00:09]} 104. Ne6 {[%emt 0:00:16] Black must now prevent Kc4.} Ke5 {[%emt 0:01:06]} 105. Kc4 {[%emt 0:00:05]} Bb6 $1 {[%emt 0:01:12] Wards off Nd8} 106. Nf8 {[%emt 0:00:10] aiming for Nd7+.} Bf2 {[%emt 0:01:26] [#]} (106... Ba7 $11 {keeps the balance.}) 107. Ng6+ {[%emt 0:00:24]} (107. Nd7+ $1 $16 Kf5 108. Nb8) 107... Kf6 {[%emt 0:00:36]} 108. Nf4 {[%emt 0:00:03] Ne6 is the strong threat.} Be3 {[%emt 0:00:35] [#]} (108... Bb6 $16 {was necessary.}) 109. Nd3 $2 {[%emt 0:00:31]} (109. Ne6 $1 $18) 109... e5 {[%emt 0:00:45] And now ...e4 would win.} 110. dxe6 {[%emt 0:01:20] Blacks defense is rewarded with a draw.   Weighted Error Value: White=0.04 (flawless) /Black=0.03 (flawless) .  Loses game:     	---       	Black=2      Missed win:     	White=4     	---        Mistake:       	White=2     	Black=3      Inaccurate:     	White=2     	Black=1      OK:         	White=46    	Black=40     Best:        	White=3     	Black=7      Strong:       	White=3     	Black=6} 1/2-1/2

[Event "Chinese League Division-A 2024"]
[Site "Fuling Chongqing"]
[Date "2024.06.29"]
[Round "4.8"]
[White "Lin, Chen"]
[Black "Wang, Chen"]
[Result "1/2-1/2"]
[ECO "C49"]
[WhiteElo "2484"]
[BlackElo "2490"]
[Annotator "TA"]
[PlyCount "62"]
[EventDate "2024.06.28"]
[EventType "team-tourn"]
[EventCountry "CHN"]
[SourceTitle "playchess.com"]
[Source "ChessBase"]
[SourceQuality "1"]
[TimeControl "40/5400+30:1800+30"]

{[%evp 17,62,10,16,12,0,0,0,0,0,0,0,0,10,0,0,0,0,0,0,0,0,0,0,0,0,0,0,0,0,0,0,0,0,0,0,0,0,0,0,0,0,0,0,0,0,0,0]} 1. e4 {[%emt 0:00:06]} e5 {[%emt 0:00:20]} 2. Nf3 {[%emt 0:00:20]} Nc6 {[%emt 0:01:07]} 3. Nc3 {[%emt 0:01:40]} Nf6 {[%emt 0:02:08]} 4. Bb5 {[%emt 0:01:43]} Bb4 {[%emt 0:01:45]} 5. O-O {[%emt 0:03:39]} O-O {[%emt 0:01:09]} 6. Bxc6 {[%emt 0:03:59]} dxc6 {[%emt 0:00:22]} 7. Nxe5 {[%emt 0:00:08]} Re8 {[%emt 0:03:21]} 8. Nd3 {[%emt 0:02:46]} Bxc3 {[%emt 0:00:15]} 9. dxc3 {[%emt 0:00:05]} Nxe4 {[%emt 0:01:12] The position is equal.} 10. Bf4 {[%emt 0:01:53]} Bf5 {[%emt 0:07:01]} 11. Re1 {[%emt 0:01:05]} h6 {[%emt 0:01:40]} 12. Qf3 {[%emt 0:01:42]} Bg6 {[%emt 0:01:01]} 13. Ne5 {[%emt 0:03:14][%cal Oe5g6] [#] aiming for Nxg6!} Nd6 {[%emt 0:01:04]} 14. Nxg6 {[%emt 0:00:17]} fxg6 {[%emt 0:00:09]} 15. Bxd6 {[%emt 0:00:19]} cxd6 {[%emt 0:01:12]} 16. g3 {[%emt 0:00:21]} Qf6 {[%emt 0:00:57]} 17. Qxf6 {[%emt 0:00:20]} gxf6 $11 {[%emt 0:00:09][%mdl 4096] Endgame. KRR-KRR} 18. c4 {[%emt 0:00:46]} Kf7 {[%emt 0:00:58]} 19. Kf1 {[%emt 0:00:46]} Rxe1+ {[%emt 0:03:56]} 20. Rxe1 {[%emt 0:00:05]} Re8 {[%emt 0:00:27]} 21. Rxe8 {[%emt 0:01:14]} Kxe8 {[%emt 0:00:10] KP-KP} 22. Ke2 {[%emt 0:00:11]} Ke7 {[%emt 0:01:39]} 23. f4 {[%emt 0:00:07][%cal Of4f5]} f5 {[%emt 0:01:58]} 24. h4 {[%emt 0:00:13]} h5 {[%emt 0:01:11]} 25. a4 {[%emt 0:00:11]} a5 {[%emt 0:01:14]} 26. b3 {[%emt 0:00:06]} c5 {[%emt 0:01:48]} 27. Ke3 {[%emt 0:00:08]} Ke6 {[%emt 0:00:07]} 28. Kd3 {[%emt 0:00:04]} Kd7 {[%emt 0:00:34]} 29. Ke3 {[%emt 0:00:05]} Ke6 {[%emt 0:00:06]} 30. Kd3 {[%emt 0:00:04]} Kd7 {[%emt 0:00:06]} 31. Ke3 {[%emt 0:00:04]} Ke6 {[%emt 0:00:26] An uneventful encounter.   Weighted Error Value: White=0.01 (flawless) /Black=0.00 (flawless) .  OK:         	White=8     	Black=5} 1/2-1/2

[Event "Chinese League Division-A 2024"]
[Site "Fuling Chongqing"]
[Date "2024.06.29"]
[Round "4.9"]
[White "Lei, Tingjie"]
[Black "Guo, Qi"]
[Result "1/2-1/2"]
[ECO "D35"]
[WhiteElo "2548"]
[BlackElo "2362"]
[Annotator "TA"]
[PlyCount "70"]
[EventDate "2024.06.28"]
[EventType "team-tourn"]
[EventCountry "CHN"]
[SourceTitle "playchess.com"]
[Source "ChessBase"]
[SourceQuality "1"]
[TimeControl "40/5400+30:1800+30"]

{[%evp 18,70,27,27,23,29,27,22,22,22,31,19,21,21,53,43,46,46,57,57,66,23,26,30,39,37,39,24,47,47,47,47,46,0,47,47,47,47,47,47,47,47,47,0,47,0,47,47,47,47,47,0,47,0,32]} 1. c4 {[%emt 0:00:09]} e6 {[%emt 0:00:21]} 2. Nc3 {[%emt 0:00:06]} d5 {[%emt 0:01:37]} 3. d4 {[%emt 0:00:04]} Nf6 {[%emt 0:02:13]} 4. cxd5 {[%emt 0:00:06]} exd5 {[%emt 0:00:05]} 5. Bg5 {[%emt 0:00:03]} c6 {[%emt 0:00:07]} 6. e3 {[%emt 0:00:04]} Bf5 {[%emt 0:00:10]} 7. Qf3 {[%emt 0:00:11]} Bg6 {[%emt 0:00:13]} 8. Bxf6 {[%emt 0:00:04]} Qxf6 {[%emt 0:00:08]} 9. Qxf6 {[%emt 0:00:03]} gxf6 {[%emt 0:00:10]} 10. h4 {[%emt 0:00:05]} h5 {[%emt 0:01:24]} 11. Nh3 {[%emt 0:00:19]} Bd6 {[%emt 0:05:51]} 12. Kd2 {[%emt 0:00:13][%cal Be1d2,Bd2d3,Bd3e2,Be2f1][%mdl 32]} a5 {[%emt 0:03:25]} 13. Bd3 {[%emt 0:00:36]} Nd7 {[%emt 0:02:02][%cal Bb8d7,Bd7f6,Bf6e4][%mdl 32]} 14. Rab1 {[%emt 0:02:32]} Rg8 {[%emt 0:07:10]} 15. g3 {[%emt 0:00:14]} Bxd3 {[%emt 0:04:32]} 16. Kxd3 {[%emt 0:00:11]} f5 {[%emt 0:05:12]} 17. Rhc1 {[%emt 0:05:07]} Ke7 {[%emt 0:00:00]} 18. Ke2 {[%emt 0:01:22]} Nf6 {[%emt 0:00:00]} 19. Ng5 {[%emt 0:06:41]} Ne4 {[%emt 0:00:29]} 20. Nf3 {[%emt 0:00:46]} a4 {[%emt 0:07:47]} 21. Rc2 {[%emt 0:11:59]} Ra6 {[%emt 0:03:40]} 22. Kf1 {[%emt 0:03:44]} Rga8 {[%emt 0:03:09]} 23. Ne2 {[%emt 0:03:16][%cal Bc3e2,Be2f4,Bf4d3][%mdl 32]} Rb6 {[%emt 0:03:27]} 24. Ne1 {[%emt 0:04:05]} Bb4 {[%emt 0:01:27]} 25. Nf3 {[%emt 0:08:24] Prevents Nd2+.} (25. Rd1 $14) 25... Ra5 {[%emt 0:05:33]} (25... Bd6 $11) 26. Nf4 {[%emt 0:04:26]} Nf6 {[%emt 0:03:46]} 27. Nd3 {[%emt 0:02:58] A dynamic duo of knights.} Bd6 {[%emt 0:05:52]} 28. Re1 {[%emt 0:04:21]} Ne4 {[%emt 0:01:04]} 29. Kg2 {[%emt 0:06:05]} Ra8 {[%emt 0:01:31]} 30. Kf1 {[%emt 0:01:14]} Ra5 $1 {[%emt 0:00:10]} 31. Kg2 {[%emt 0:09:44]} Ra8 $1 {[%emt 0:02:22]} 32. Nfe5 {[%emt 0:02:28]} Nf6 {[%emt 0:08:23]} 33. Ree2 {[%emt 0:05:11]} Rb5 {[%emt 0:02:26]} 34. Re1 {[%emt 0:01:04]} Rb6 $1 {[%emt 0:00:17]} 35. Ree2 {[%emt 0:00:02]} Rb5 {[%emt 0:00:06] Weighted Error Value: White=0.12 (very precise) /Black=0.05 (flawless) .  Mistake:       	White=1     	Black=1      Inaccurate:     	White=1     	Black=1      OK:         	White=8     	Black=6      Best:        	---       	Black=1      Strong:       	---       	Black=3} 1/2-1/2

[Event "Chinese League Division-A 2024"]
[Site "Fuling Chongqing"]
[Date "2024.06.29"]
[Round "4.10"]
[White "Gao, Muziyan"]
[Black "Wang, Chuqiao"]
[Result "1-0"]
[ECO "A11"]
[WhiteElo "1943"]
[BlackElo "2278"]
[Annotator "RC"]
[PlyCount "43"]
[EventDate "2024.06.28"]
[EventType "team-tourn"]
[EventCountry "CHN"]
[SourceTitle "playchess.com"]
[Source "ChessBase"]
[SourceQuality "1"]
[TimeControl "40/5400+30:1800+30"]

1. Nf3 {[%emt 0:00:04]} d5 {[%emt 0:00:11]} 2. g3 {[%emt 0:00:08]} c6 {[%emt 0:00:05]} 3. Bg2 {[%emt 0:00:15]} Bg4 {[%emt 0:00:15]} 4. c4 {[%emt 0:01:45]} Nf6 {[%emt 0:01:34]} 5. Ne5 {[%emt 0:00:26]} Bf5 {[%emt 0:08:17]} 6. cxd5 {[%emt 0:00:12]} cxd5 {[%emt 0:01:04]} 7. Nc3 {[%emt 0:00:07]} e6 {[%emt 0:01:15]} 8. g4 {[%emt 0:00:10]} Bg6 {[%emt 0:02:09]} 9. h4 {[%emt 0:02:05]} Bd6 {[%emt 0:04:35]} 10. d4 {[%emt 0:00:28]} h6 {[%emt 0:14:42]} 11. Nxg6 {[%emt 0:16:12]} fxg6 {[%emt 0:00:07]} 12. Qd3 {[%emt 0:00:25]} Kf7 {[%emt 0:04:19]} 13. h5 {[%emt 0:09:00]} g5 {[%emt 0:02:15]} 14. O-O {[%emt 0:01:19]} Rf8 {[%emt 0:05:13]} 15. e4 {[%emt 0:17:34]} dxe4 {[%emt 0:02:00]} 16. Nxe4 {[%emt 0:00:08]} Nxe4 {[%emt 0:19:02]} 17. Qxe4 {[%emt 0:02:39]} Nc6 {[%emt 0:05:51]} 18. d5 {[%emt 0:08:10]} Ne5 {[%emt 0:02:32]} 19. f4 {[%emt 0:01:02]} Bc5+ {[%emt 0:07:15]} 20. Be3 {[%emt 0:02:39]} Qxd5 {[%emt 0:05:20]} 21. fxe5+ {[%emt 0:00:22]} Kg8 {[%emt 0:00:10]} 22. Bxc5 {[%emt 0:00:30]} 1-0

[Event "Chinese League Division-A 2024"]
[Site "Fuling Chongqing"]
[Date "2024.06.29"]
[Round "4.11"]
[White "Jiang, Haochen"]
[Black "Chen, Yuan"]
[Result "1/2-1/2"]
[ECO "D11"]
[WhiteElo "2290"]
[BlackElo "2294"]
[Annotator "RC"]
[PlyCount "111"]
[EventDate "2024.06.28"]
[EventType "team-tourn"]
[EventCountry "CHN"]
[SourceTitle "playchess.com"]
[Source "ChessBase"]
[SourceQuality "1"]
[TimeControl "40/5400+30:1800+30"]

1. Nf3 {[%emt 0:00:02]} Nf6 {[%emt 0:00:16]} 2. g3 {[%emt 0:00:27]} d5 {[%emt 0:00:16]} 3. Bg2 {[%emt 0:00:31]} Bf5 {[%emt 0:03:40]} 4. c4 {[%emt 0:01:56]} c6 {[%emt 0:01:48]} 5. Qb3 {[%emt 0:00:50]} Qb6 {[%emt 0:03:35]} 6. O-O {[%emt 0:05:11]} e6 {[%emt 0:00:50]} 7. Nc3 {[%emt 0:03:23]} Nbd7 {[%emt 0:01:18]} 8. d4 {[%emt 0:01:46]} Be7 {[%emt 0:03:04]} 9. c5 {[%emt 0:06:45]} Qxb3 {[%emt 0:01:33]} 10. axb3 {[%emt 0:00:11]} O-O {[%emt 0:11:55]} 11. b4 {[%emt 0:01:52]} Ne4 {[%emt 0:06:26]} 12. Bf4 {[%emt 0:02:01]} g5 {[%emt 0:01:58]} 13. Nxe4 {[%emt 0:07:29]} gxf4 {[%emt 0:00:09]} 14. Nc3 {[%emt 0:01:05]} fxg3 {[%emt 0:00:31]} 15. hxg3 {[%emt 0:00:21]} a6 {[%emt 0:05:25]} 16. Nd2 {[%emt 0:08:25]} e5 {[%emt 0:02:17]} 17. e4 {[%emt 0:03:00]} Bxe4 {[%emt 0:22:58]} 18. Bxe4 {[%emt 0:09:35]} dxe4 {[%emt 0:00:18]} 19. d5 {[%emt 0:00:34]} f5 {[%emt 0:00:23]} 20. Nc4 {[%emt 0:00:54]} Kf7 {[%emt 0:15:19]} 21. Rfd1 {[%emt 0:03:26]} Rfd8 {[%emt 0:02:30]} 22. Na5 {[%emt 0:06:47]} cxd5 {[%emt 0:01:37]} 23. Nxd5 {[%emt 0:03:57]} Nf6 {[%emt 0:02:08]} 24. Nxf6 {[%emt 0:00:26]} Rxd1+ {[%emt 0:01:45]} 25. Rxd1 {[%emt 0:00:05]} Kxf6 {[%emt 0:00:04]} 26. Rd7 {[%emt 0:02:19]} Rd8 {[%emt 0:03:50]} 27. Rxb7 {[%emt 0:01:10]} Rd1+ {[%emt 0:00:47]} 28. Kg2 {[%emt 0:00:20]} f4 {[%emt 0:00:28]} 29. gxf4 {[%emt 0:25:06]} exf4 {[%emt 0:00:01]} 30. Nc4 {[%emt 0:00:11]} Ke6 {[%emt 0:04:46]} 31. b3 {[%emt 0:02:30]} h5 {[%emt 0:01:39]} 32. Rb6+ {[%emt 0:01:44]} Kf5 {[%emt 0:01:09]} 33. Rh6 {[%emt 0:01:45]} h4 {[%emt 0:01:42]} 34. c6 {[%emt 0:00:27]} Bd8 {[%emt 0:00:07]} 35. Rd6 {[%emt 0:00:55]} f3+ {[%emt 0:00:16]} 36. Kh2 {[%emt 0:00:01]} Bc7 {[%emt 0:00:32]} 37. Ne3+ {[%emt 0:00:04]} Kg5 {[%emt 0:00:00]} 38. Nxd1 {[%emt 0:00:09]} Bxd6+ {[%emt 0:00:02]} 39. Kh3 {[%emt 0:00:01]} Kf5 {[%emt 0:01:08]} 40. Kxh4 {[%emt 0:00:00]} Bf4 {[%emt 0:00:00]} 41. Ne3+ {[%emt 0:09:41]} Ke6 {[%emt 0:01:19]} 42. Nf1 {[%emt 0:00:25]} Kd6 {[%emt 0:08:40]} 43. Kg4 {[%emt 0:01:11]} Bc1 {[%emt 0:00:05]} 44. Ng3 {[%emt 0:02:55]} e3 {[%emt 0:05:19]} 45. fxe3 {[%emt 0:01:46]} Bxe3 {[%emt 0:00:19]} 46. Kxf3 {[%emt 0:05:26]} Bb6 {[%emt 0:00:21]} 47. Nf5+ {[%emt 0:02:00]} Kxc6 {[%emt 0:00:05]} 48. Ne7+ {[%emt 0:00:05]} Kb5 {[%emt 0:00:43]} 49. Nd5 {[%emt 0:00:10]} Bd8 {[%emt 0:00:25]} 50. Ke4 {[%emt 0:00:15]} Be7 {[%emt 0:01:34]} 51. Kd3 {[%emt 0:00:18]} Bxb4 {[%emt 0:00:15]} 52. Nc7+ {[%emt 0:00:07]} Kb6 {[%emt 0:00:14]} 53. Nd5+ {[%emt 0:00:10]} Kb5 {[%emt 0:00:11]} 54. Nc7+ {[%emt 0:00:05]} Kb6 {[%emt 0:00:04]} 55. Nd5+ {[%emt 0:00:09]} Kb5 {[%emt 0:00:05]} 56. Nc7+ {[%emt 0:00:49]} 1/2-1/2